[Event "*** Titled Tuesday 3|2 Blitz (Late)"]
[Site "Chess.com"]
[Date "2017.01.03"]
[Round "4"]
[White "bugsbunny444"]
[Black "boredoldman"]
[Result "0-1"]
[WhiteElo "2334"]
[BlackElo "2508"]
[TimeControl "180+2"]
[EndTime "17:44:25 PST"]
[Termination "boredoldman won by resignation"]

1. Nf3 {[%clk 0:03:02]} 1... c5 {[%clk 0:02:59.7]} 2. c4 {[%clk 0:03:03.5]} 2...
Nc6 {[%clk 0:03:00.7]} 3. d4 {[%clk 0:03:04.3]} 3... cxd4 {[%clk 0:03:01.8]} 4.
Nxd4 {[%clk 0:03:06.2]} 4... e5 {[%clk 0:03:03]} 5. Nb5 {[%clk 0:03:06.3]} 5...
d6 {[%clk 0:03:04]} 6. N1c3 {[%clk 0:03:06.7]} 6... Nf6 {[%clk 0:03:05.6]} 7. g3
{[%clk 0:03:02.1]} 7... a6 {[%clk 0:03:06.4]} 8. Na3 {[%clk 0:03:03]} 8... Be6
{[%clk 0:03:00.1]} 9. Bg2 {[%clk 0:03:04.6]} 9... Be7 {[%clk 0:02:57.8]} 10. O-O
{[%clk 0:03:04.9]} 10... O-O {[%clk 0:02:59.4]} 11. Nd5 {[%clk 0:03:03.6]} 11...
Rc8 {[%clk 0:02:57.7]} 12. Be3 {[%clk 0:03:04.3]} 12... Bf5 {[%clk 0:02:17.5]}
13. Bb6 {[%clk 0:02:45.5]} 13... Qd7 {[%clk 0:02:06.2]} 14. Qd2 {[%clk
0:02:38.3]} 14... Ne4 {[%clk 0:02:04.5]} 15. Qe3 {[%clk 0:02:29.3]} 15... Nf6
{[%clk 0:02:03.7]} 16. Rfd1 {[%clk 0:02:24.3]} 16... Nxd5 {[%clk 0:02:03.4]} 17.
Rxd5 {[%clk 0:02:10.8]} 17... Bh3 {[%clk 0:01:59.8]} 18. Rad1 {[%clk 0:01:50.1]}
18... Bxg2 {[%clk 0:01:57.1]} 19. Kxg2 {[%clk 0:01:52]} 19... Qe6 {[%clk
0:01:57.7]} 20. Qd2 {[%clk 0:01:39.2]} 20... f5 {[%clk 0:01:57.5]} 21. Nb1
{[%clk 0:01:27.4]} 21... f4 {[%clk 0:01:55.7]} 22. Nc3 {[%clk 0:01:19.3]} 22...
Rf6 {[%clk 0:01:55.4]} 23. f3 {[%clk 0:01:03.5]} 23... fxg3 {[%clk 0:01:54.2]}
24. hxg3 {[%clk 0:01:04.3]} 24... Rh6 {[%clk 0:01:54.8]} 25. g4 {[%clk
0:01:01.5]} 25... Nb4 {[%clk 0:01:50.8]} 26. b3 {[%clk 0:00:51.9]} 26... Rg6
{[%clk 0:01:46.6]} 27. Ra5 {[%clk 0:00:43.5]} 27... h5 {[%clk 0:01:42.8]} 28.
Nd5 {[%clk 0:00:29.1]} 28... hxg4 {[%clk 0:01:40]} 29. f4 {[%clk 0:00:14.3]}
29... Nxd5 {[%clk 0:01:40.3]} 30. Rxd5 {[%clk 0:00:07.3]} 30... exf4 {[%clk
0:01:41]} 31. Qxf4 {[%clk 0:00:04.6]} 31... Qxe2+ {[%clk 0:01:41.1]} 32. Qf2
{[%clk 0:00:05.9]} 32... Qe4+ {[%clk 0:01:40.2]} 33. Kg3 {[%clk 0:00:03.7]}
33... Bh4+ {[%clk 0:01:37.6]} 0-1

[Event "*** Titled Tuesday 3|2 Blitz (Late)"]
[Site "Chess.com"]
[Date "2017.01.03"]
[Round "4"]
[White "BCNUM8"]
[Black "AllStarShark"]
[Result "0-1"]
[WhiteElo "2126"]
[BlackElo "2224"]
[TimeControl "180+2"]
[EndTime "17:44:33 PST"]
[Termination "AllStarShark won on time"]

1. d4 {[%clk 0:03:01.9]} 1... d5 {[%clk 0:03:00]} 2. Bg5 {[%clk 0:03:02.7]} 2...
h6 {[%clk 0:02:58.7]} 3. Bh4 {[%clk 0:03:03.6]} 3... g5 {[%clk 0:02:59.7]} 4.
Bg3 {[%clk 0:03:03.9]} 4... Bg7 {[%clk 0:02:58.5]} 5. e3 {[%clk 0:03:02.1]} 5...
c5 {[%clk 0:02:59.2]} 6. c3 {[%clk 0:03:01.4]} 6... Nd7 {[%clk 0:02:55.7]} 7. h4
{[%clk 0:02:59.3]} 7... Ngf6 {[%clk 0:02:50.1]} 8. hxg5 {[%clk 0:02:59.7]} 8...
hxg5 {[%clk 0:02:52]} 9. Rxh8+ {[%clk 0:03:01.4]} 9... Bxh8 {[%clk 0:02:53.9]}
10. Nf3 {[%clk 0:03:01.2]} 10... Ne4 {[%clk 0:02:47.6]} 11. Bh2 {[%clk
0:02:55.2]} 11... e6 {[%clk 0:02:39.1]} 12. Nbd2 {[%clk 0:02:51.4]} 12... Nxd2
{[%clk 0:02:24.8]} 13. Qxd2 {[%clk 0:02:48.6]} 13... g4 {[%clk 0:02:18.4]} 14.
Ne5 {[%clk 0:02:48.5]} 14... Bxe5 {[%clk 0:02:13.7]} 15. dxe5 {[%clk 0:02:50]}
15... Qg5 {[%clk 0:02:09.2]} 16. Bb5 {[%clk 0:02:50.8]} 16... a6 {[%clk
0:02:08.2]} 17. Bxd7+ {[%clk 0:02:51.4]} 17... Bxd7 {[%clk 0:02:09.7]} 18. O-O-O
{[%clk 0:02:46]} 18... O-O-O {[%clk 0:02:06.1]} 19. Bf4 {[%clk 0:02:47.1]} 19...
Qg6 {[%clk 0:02:03.3]} 20. Rh1 {[%clk 0:02:45.4]} 20... Bc6 {[%clk 0:01:46]} 21.
Rh6 {[%clk 0:02:45]} 21... Qe4 {[%clk 0:01:44.9]} 22. g3 {[%clk 0:02:29.2]}
22... d4 {[%clk 0:01:44.9]} 23. cxd4 {[%clk 0:02:18.6]} 23... cxd4 {[%clk
0:01:42.9]} 24. Qc2 {[%clk 0:02:10.3]} 24... d3 {[%clk 0:01:29.8]} 25. Qd2
{[%clk 0:01:50.8]} 25... Qc4+ {[%clk 0:01:28.5]} 26. Kb1 {[%clk 0:01:48.8]}
26... Be4 {[%clk 0:01:24.7]} 27. b3 {[%clk 0:01:40.7]} 27... Qc2+ {[%clk
0:01:19.2]} 28. Qxc2+ {[%clk 0:01:36.8]} 28... dxc2+ {[%clk 0:01:21.1]} 29. Kb2
{[%clk 0:01:38.3]} 29... Rd1 {[%clk 0:01:22.1]} 30. Rh8+ {[%clk 0:01:38.9]}
30... Kd7 {[%clk 0:01:22.8]} 0-1

[Event "*** Titled Tuesday 3|2 Blitz (Late)"]
[Site "Chess.com"]
[Date "2017.01.03"]
[Round "4"]
[White "StegariuVlad"]
[Black "Hamisandwich"]
[Result "0-1"]
[WhiteElo "2434"]
[BlackElo "2395"]
[TimeControl "180+2"]
[EndTime "17:44:46 PST"]
[Termination "Hamisandwich won by resignation"]

1. e4 {[%clk 0:03:02]} 1... d6 {[%clk 0:03:00.5]} 2. d4 {[%clk 0:03:01.3]} 2...
Nf6 {[%clk 0:03:02.4]} 3. f3 {[%clk 0:03:00.9]} 3... g6 {[%clk 0:03:03]} 4. Be3
{[%clk 0:03:00.9]} 4... Bg7 {[%clk 0:03:03.7]} 5. Qd2 {[%clk 0:03:01.6]} 5... h6
{[%clk 0:03:02.1]} 6. Ne2 {[%clk 0:03:02.1]} 6... c6 {[%clk 0:03:02.5]} 7. Nbc3
{[%clk 0:03:02.5]} 7... b5 {[%clk 0:03:03]} 8. a3 {[%clk 0:03:03.2]} 8... Nbd7
{[%clk 0:03:01]} 9. O-O-O {[%clk 0:03:04.2]} 9... Nb6 {[%clk 0:03:01.6]} 10. Ng3
{[%clk 0:03:01.8]} 10... a5 {[%clk 0:02:54.3]} 11. e5 {[%clk 0:02:48]} 11... b4
{[%clk 0:02:17.8]} 12. exf6 {[%clk 0:02:47.2]} 12... bxc3 {[%clk 0:02:18.7]} 13.
Qxc3 {[%clk 0:02:46.3]} 13... Bxf6 {[%clk 0:02:20]} 14. Qxc6+ {[%clk 0:02:43.9]}
14... Bd7 {[%clk 0:02:21.3]} 15. Qe4 {[%clk 0:02:42.1]} 15... d5 {[%clk
0:02:16.3]} 16. Qd3 {[%clk 0:02:40.6]} 16... Nc4 {[%clk 0:02:07.4]} 17. Qc3
{[%clk 0:02:40.7]} 17... Rc8 {[%clk 0:02:02.3]} 18. Bxc4 {[%clk 0:02:40.8]}
18... Rxc4 {[%clk 0:02:04.2]} 19. Qd2 {[%clk 0:02:39.8]} 19... Ba4 {[%clk
0:02:00]} 20. c3 {[%clk 0:02:34]} 20... Bxd1 {[%clk 0:01:48.4]} 21. Rxd1 {[%clk
0:02:34.8]} 21... h5 {[%clk 0:01:38.3]} 22. Bg5 {[%clk 0:02:20.8]} 22... Bxd4
{[%clk 0:01:22.4]} 23. Re1 {[%clk 0:02:17.6]} 23... f6 {[%clk 0:01:18.6]} 24.
Qd3 {[%clk 0:02:10.9]} 24... Kf7 {[%clk 0:01:14.2]} 25. Bd2 {[%clk 0:02:12]}
25... a4 {[%clk 0:01:01.4]} 26. Kb1 {[%clk 0:02:12.8]} 26... Bc5 {[%clk
0:01:00.6]} 27. Ne2 {[%clk 0:02:10.9]} 27... e5 {[%clk 0:00:58.3]} 28. f4 {[%clk
0:02:01.8]} 28... e4 {[%clk 0:00:55.5]} 29. Qh3 {[%clk 0:02:02.7]} 29... Qc8
{[%clk 0:00:52]} 30. Qh4 {[%clk 0:02:02.9]} 30... Qg4 {[%clk 0:00:50.5]} 31. Qh3
{[%clk 0:01:40.5]} 31... Qxh3 {[%clk 0:00:49.2]} 32. gxh3 {[%clk 0:01:42.4]}
32... Rb8 {[%clk 0:00:48.4]} 33. Ka2 {[%clk 0:01:41.4]} 33... d4 {[%clk
0:00:44.6]} 34. cxd4 {[%clk 0:01:41.2]} 34... Bxd4 {[%clk 0:00:46.5]} 35. Nxd4
{[%clk 0:01:42.4]} 35... Rxd4 {[%clk 0:00:46.9]} 36. Bc3 {[%clk 0:01:44]} 36...
Rc4 {[%clk 0:00:46.6]} 37. Rd1 {[%clk 0:01:44.7]} 37... Ke6 {[%clk 0:00:45.2]}
38. Bb4 {[%clk 0:01:30]} 38... Rbxb4 {[%clk 0:00:32.4]} 39. axb4 {[%clk
0:01:31.9]} 39... Rxb4 {[%clk 0:00:34]} 40. Ka3 {[%clk 0:01:33.5]} 40... Rc4
{[%clk 0:00:34.2]} 41. Rg1 {[%clk 0:01:33.4]} 41... Kf5 {[%clk 0:00:34.3]} 42.
h4 {[%clk 0:01:34.9]} 42... e3 {[%clk 0:00:34.9]} 43. Rg3 {[%clk 0:01:35.6]}
43... Re4 {[%clk 0:00:35]} 44. Rg1 {[%clk 0:01:35.8]} 44... e2 {[%clk 0:00:36]}
45. Re1 {[%clk 0:01:37.1]} 45... Kxf4 {[%clk 0:00:37.2]} 0-1

[Event "*** Titled Tuesday 3|2 Blitz (Late)"]
[Site "Chess.com"]
[Date "2017.01.03"]
[Round "4"]
[White "severomorskij"]
[Black "jbj"]
[Result "1-0"]
[WhiteElo "2600"]
[BlackElo "2340"]
[TimeControl "180+2"]
[EndTime "17:44:51 PST"]
[Termination "severomorskij won by resignation"]

1. d4 {[%clk 0:03:02]} 1... Nf6 {[%clk 0:03:00.7]} 2. Bg5 {[%clk 0:03:01.2]}
2... d5 {[%clk 0:03:01]} 3. e3 {[%clk 0:03:01.4]} 3... Bf5 {[%clk 0:02:56.8]} 4.
Bxf6 {[%clk 0:02:33.2]} 4... exf6 {[%clk 0:02:54.3]} 5. Nf3 {[%clk 0:02:27.8]}
5... c6 {[%clk 0:02:52.8]} 6. c4 {[%clk 0:02:26.4]} 6... Qb6 {[%clk 0:02:47.3]}
7. Qb3 {[%clk 0:01:45]} 7... Qxb3 {[%clk 0:02:40.5]} 8. axb3 {[%clk 0:01:44.7]}
8... Bb4+ {[%clk 0:02:41.9]} 9. Nc3 {[%clk 0:01:38.6]} 9... dxc4 {[%clk
0:02:40.9]} 10. bxc4 {[%clk 0:01:37.7]} 10... Nd7 {[%clk 0:02:41.4]} 11. Be2
{[%clk 0:01:34.2]} 11... Be4 {[%clk 0:02:30.8]} 12. O-O {[%clk 0:01:30.4]} 12...
Bxf3 {[%clk 0:02:31.5]} 13. Bxf3 {[%clk 0:01:30.1]} 13... Bxc3 {[%clk
0:02:32.7]} 14. bxc3 {[%clk 0:01:30.7]} 14... Ke7 {[%clk 0:02:33.9]} 15. Rfb1
{[%clk 0:01:29.2]} 15... Rhb8 {[%clk 0:02:33.6]} 16. Ra5 {[%clk 0:01:28.5]}
16... Kd8 {[%clk 0:02:28.7]} 17. Kf1 {[%clk 0:01:16.8]} 17... Kc7 {[%clk
0:02:28.6]} 18. Ke2 {[%clk 0:01:17.9]} 18... Re8 {[%clk 0:02:26.3]} 19. Kd3
{[%clk 0:01:17.1]} 19... g6 {[%clk 0:02:23.3]} 20. g4 {[%clk 0:01:17.4]} 20...
a6 {[%clk 0:02:14.5]} 21. c5 {[%clk 0:01:12]} 21... f5 {[%clk 0:02:10.4]} 22.
gxf5 {[%clk 0:01:10.8]} 22... gxf5 {[%clk 0:02:11.5]} 23. Ra2 {[%clk 0:01:03.2]}
23... Nf6 {[%clk 0:02:08.7]} 24. Rab2 {[%clk 0:00:52.5]} 24... Rab8 {[%clk
0:02:09.7]} 25. c4 {[%clk 0:00:53.7]} 25... Red8 {[%clk 0:02:02.8]} 26. h3
{[%clk 0:00:39.3]} 26... h6 {[%clk 0:01:57.1]} 27. Kc3 {[%clk 0:00:27.3]} 27...
Rd7 {[%clk 0:01:38.5]} 28. Bxc6 {[%clk 0:00:22.7]} 28... Ne4+ {[%clk 0:01:12.2]}
29. Bxe4 {[%clk 0:00:23.1]} 29... fxe4 {[%clk 0:01:14.1]} 30. d5 {[%clk
0:00:24.7]} 30... f5 {[%clk 0:01:12.6]} 31. Kd4 {[%clk 0:00:25.5]} 31... Rg7
{[%clk 0:01:10.2]} 32. d6+ {[%clk 0:00:23.1]} 32... Kc8 {[%clk 0:01:09.9]} 33.
c6 {[%clk 0:00:22.9]} 33... Rg6 {[%clk 0:01:06.5]} 34. c5 {[%clk 0:00:19.6]}
34... Rg7 {[%clk 0:01:03]} 35. c7 {[%clk 0:00:19.2]} 1-0

[Event "*** Titled Tuesday 3|2 Blitz (Late)"]
[Site "Chess.com"]
[Date "2017.01.03"]
[Round "4"]
[White "AdrianaNikolova"]
[Black "amurdercastle"]
[Result "1-0"]
[WhiteElo "2261"]
[BlackElo "2336"]
[TimeControl "180+2"]
[EndTime "17:44:53 PST"]
[Termination "AdrianaNikolova won by resignation"]

1. e4 {[%clk 0:03:01.9]} 1... c6 {[%clk 0:03:00.1]} 2. d4 {[%clk 0:03:02.3]}
2... d5 {[%clk 0:03:02]} 3. Nc3 {[%clk 0:03:04.2]} 3... dxe4 {[%clk 0:03:02.8]}
4. Nxe4 {[%clk 0:03:06.1]} 4... Bf5 {[%clk 0:03:04.5]} 5. Ng3 {[%clk 0:03:05.9]}
5... Bg6 {[%clk 0:03:05.9]} 6. h4 {[%clk 0:03:07.5]} 6... h6 {[%clk 0:03:07.4]}
7. Nf3 {[%clk 0:03:09.4]} 7... Nd7 {[%clk 0:03:07.8]} 8. Bd3 {[%clk 0:03:10.9]}
8... Bxd3 {[%clk 0:03:08.3]} 9. Qxd3 {[%clk 0:03:12.8]} 9... e6 {[%clk
0:03:09.9]} 10. Bd2 {[%clk 0:03:12.6]} 10... Ngf6 {[%clk 0:03:10.7]} 11. O-O-O
{[%clk 0:03:13.8]} 11... Be7 {[%clk 0:03:12.3]} 12. Ne4 {[%clk 0:03:14.9]} 12...
Nxe4 {[%clk 0:03:13.3]} 13. Qxe4 {[%clk 0:03:16.8]} 13... Nf6 {[%clk 0:03:15.2]}
14. Qe2 {[%clk 0:03:18.4]} 14... Qd5 {[%clk 0:03:17.1]} 15. Kb1 {[%clk
0:03:19.9]} 15... Qe4 {[%clk 0:03:18.1]} 16. Be3 {[%clk 0:03:21.8]} 16... O-O-O
{[%clk 0:03:15.5]} 17. Ne5 {[%clk 0:03:19]} 17... Rhf8 {[%clk 0:03:13.9]} 18. f3
{[%clk 0:03:15.1]} 18... Qd5 {[%clk 0:03:13]} 19. c4 {[%clk 0:03:13.5]} 19...
Qa5 {[%clk 0:03:13.8]} 20. Bd2 {[%clk 0:03:08]} 20... Bb4 {[%clk 0:03:05.8]} 21.
Bf4 {[%clk 0:02:21.6]} 21... Be7 {[%clk 0:02:45.3]} 22. g4 {[%clk 0:02:12.2]}
22... c5 {[%clk 0:02:25.2]} 23. Nxf7 {[%clk 0:01:57.2]} 23... Rxf7 {[%clk
0:01:54.9]} 24. Qxe6+ {[%clk 0:01:56.2]} 24... Rd7 {[%clk 0:01:56]} 25. Qxf7
{[%clk 0:01:40.3]} 25... cxd4 {[%clk 0:01:45.2]} 26. Rhe1 {[%clk 0:01:33.4]}
26... Bd6 {[%clk 0:01:34.6]} 27. Bd2 {[%clk 0:00:59.6]} 27... Qd8 {[%clk
0:01:12.3]} 28. Qe6 {[%clk 0:00:57.6]} 28... Kb8 {[%clk 0:01:12.9]} 29. g5
{[%clk 0:00:54.1]} 29... hxg5 {[%clk 0:01:12.1]} 30. Bxg5 {[%clk 0:00:55.8]}
30... Be7 {[%clk 0:01:09.2]} 31. Bxf6 {[%clk 0:00:47.5]} 31... Bxf6 {[%clk
0:01:11.1]} 32. Qe8 {[%clk 0:00:47.5]} 32... Bxh4 {[%clk 0:01:07.3]} 33. Re4
{[%clk 0:00:27.8]} 33... Bf6 {[%clk 0:01:00.4]} 34. Qg6 {[%clk 0:00:23.9]} 34...
a6 {[%clk 0:00:55.8]} 35. Re8 {[%clk 0:00:24]} 1-0

[Event "*** Titled Tuesday 3|2 Blitz (Late)"]
[Site "Chess.com"]
[Date "2017.01.03"]
[Round "4"]
[White "Genghis_K"]
[Black "AndrBaryshpolets"]
[Result "1-0"]
[WhiteElo "2722"]
[BlackElo "2466"]
[TimeControl "180+2"]
[EndTime "17:45:01 PST"]
[Termination "Genghis_K won by resignation"]

1. d4 {[%clk 0:03:02]} 1... d5 {[%clk 0:03:00.8]} 2. Bf4 {[%clk 0:03:01.5]} 2...
Nf6 {[%clk 0:03:01.1]} 3. e3 {[%clk 0:03:02.4]} 3... c5 {[%clk 0:03:02.3]} 4. c3
{[%clk 0:03:01.5]} 4... Qb6 {[%clk 0:02:57.8]} 5. Qb3 {[%clk 0:03:00.5]} 5...
Nc6 {[%clk 0:02:56.9]} 6. Nd2 {[%clk 0:02:59.7]} 6... c4 {[%clk 0:02:52.9]} 7.
Qc2 {[%clk 0:03:00.2]} 7... g6 {[%clk 0:02:50.5]} 8. e4 {[%clk 0:02:57.6]} 8...
Na5 {[%clk 0:01:55.8]} 9. Be5 {[%clk 0:02:47.8]} 9... Be6 {[%clk 0:01:43.9]} 10.
exd5 {[%clk 0:02:23.1]} 10... Bxd5 {[%clk 0:01:44.4]} 11. Nh3 {[%clk 0:02:21.2]}
11... Bh6 {[%clk 0:01:26.1]} 12. Bf4 {[%clk 0:02:08.8]} 12... Bg7 {[%clk
0:01:16.4]} 13. Be3 {[%clk 0:02:05.3]} 13... O-O {[%clk 0:01:13.3]} 14. Nf4
{[%clk 0:02:06.4]} 14... Rac8 {[%clk 0:01:15]} 15. Be2 {[%clk 0:02:05.7]} 15...
Qd6 {[%clk 0:01:08.8]} 16. O-O {[%clk 0:02:05]} 16... b5 {[%clk 0:01:05.6]} 17.
Rfe1 {[%clk 0:02:04.9]} 17... Rfe8 {[%clk 0:01:04.1]} 18. a3 {[%clk 0:01:58.5]}
18... a6 {[%clk 0:01:01.8]} 19. Rad1 {[%clk 0:01:57.2]} 19... Nc6 {[%clk
0:00:48.5]} 20. Nxd5 {[%clk 0:01:50.1]} 20... Nxd5 {[%clk 0:00:50.4]} 21. Bg5
{[%clk 0:01:51.7]} 21... f5 {[%clk 0:00:40.4]} 22. Nf3 {[%clk 0:01:45.1]} 22...
h6 {[%clk 0:00:30.6]} 23. Bc1 {[%clk 0:01:46.5]} 23... e6 {[%clk 0:00:30.7]} 24.
Ne5 {[%clk 0:01:43.7]} 24... Nxe5 {[%clk 0:00:25.9]} 25. dxe5 {[%clk 0:01:45]}
25... Bxe5 {[%clk 0:00:27.5]} 26. g3 {[%clk 0:01:38.2]} 26... Bg7 {[%clk
0:00:24.3]} 27. Bf3 {[%clk 0:01:39.8]} 27... Rcd8 {[%clk 0:00:24.9]} 28. Bf4
{[%clk 0:01:37.5]} 28... Qb6 {[%clk 0:00:21.4]} 29. Be5 {[%clk 0:01:36.3]} 29...
Bxe5 {[%clk 0:00:19.9]} 30. Rxe5 {[%clk 0:01:38.2]} 30... Nf6 {[%clk 0:00:20.9]}
31. Rde1 {[%clk 0:01:38.9]} 31... Kf7 {[%clk 0:00:21.3]} 32. h4 {[%clk
0:01:37.1]} 32... g5 {[%clk 0:00:21.7]} 33. hxg5 {[%clk 0:01:36.5]} 33... hxg5
{[%clk 0:00:23.6]} 34. Qc1 {[%clk 0:01:37.8]} 34... g4 {[%clk 0:00:22]} 35. Bg2
{[%clk 0:01:39.4]} 35... Rd6 {[%clk 0:00:22.5]} 36. Qh6 {[%clk 0:01:40.3]} 36...
Rg8 {[%clk 0:00:23.3]} 37. Qf4 {[%clk 0:01:35.2]} 37... Qd8 {[%clk 0:00:22]} 38.
a4 {[%clk 0:01:33.9]} 38... Rg6 {[%clk 0:00:20.8]} 39. axb5 {[%clk 0:01:33.7]}
39... axb5 {[%clk 0:00:20.8]} 40. Rxb5 {[%clk 0:01:35]} 40... Nd5 {[%clk
0:00:14.5]} 41. Rb7+ {[%clk 0:01:29.3]} 41... Rd7 {[%clk 0:00:13.7]} 42. Bxd5
{[%clk 0:01:30.6]} 1-0

[Event "*** Titled Tuesday 3|2 Blitz (Late)"]
[Site "Chess.com"]
[Date "2017.01.03"]
[Round "4"]
[White "afgano29"]
[Black "Kanthecarowin"]
[Result "1-0"]
[WhiteElo "2409"]
[BlackElo "2246"]
[TimeControl "180+2"]
[EndTime "17:45:03 PST"]
[Termination "afgano29 won by resignation"]

1. e4 {[%clk 0:02:53.6]} 1... c6 {[%clk 0:02:56.6]} 2. d4 {[%clk 0:02:54.1]}
2... d5 {[%clk 0:02:55.2]} 3. exd5 {[%clk 0:02:54.1]} 3... cxd5 {[%clk
0:02:47.2]} 4. c4 {[%clk 0:02:54.4]} 4... Nf6 {[%clk 0:02:46.7]} 5. Nc3 {[%clk
0:02:54.7]} 5... e6 {[%clk 0:02:46]} 6. Nf3 {[%clk 0:02:55.3]} 6... Bb4 {[%clk
0:02:45.6]} 7. Be2 {[%clk 0:02:47.2]} 7... dxc4 {[%clk 0:02:45.8]} 8. Bxc4
{[%clk 0:02:43.7]} 8... O-O {[%clk 0:02:45.1]} 9. O-O {[%clk 0:02:44.2]} 9... b6
{[%clk 0:02:45.1]} 10. a3 {[%clk 0:02:43.2]} 10... Be7 {[%clk 0:02:45.7]} 11.
Qd3 {[%clk 0:02:43.4]} 11... Bb7 {[%clk 0:02:46.4]} 12. Bg5 {[%clk 0:02:42.4]}
12... Nbd7 {[%clk 0:02:46.8]} 13. Rad1 {[%clk 0:02:41.5]} 13... Rc8 {[%clk
0:02:46]} 14. Ba2 {[%clk 0:02:40.4]} 14... Qc7 {[%clk 0:02:41.7]} 15. Bb1 {[%clk
0:02:39.1]} 15... g6 {[%clk 0:02:37.6]} 16. Rfe1 {[%clk 0:02:37.6]} 16... Rfd8
{[%clk 0:02:34.6]} 17. Qe3 {[%clk 0:02:29.4]} 17... Nd5 {[%clk 0:02:15.8]} 18.
Nxd5 {[%clk 0:02:24.6]} 18... Bxg5 {[%clk 0:02:16.1]} 19. Nxc7 {[%clk
0:01:45.5]} 19... Bxe3 {[%clk 0:02:14.7]} 20. Nxe6 {[%clk 0:01:46.1]} 20...
Bxf2+ {[%clk 0:02:09.9]} 21. Kxf2 {[%clk 0:01:46.6]} 21... fxe6 {[%clk
0:02:08.4]} 22. Rxe6 {[%clk 0:01:46.8]} 22... Nc5 {[%clk 0:02:03.2]} 23. Re7
{[%clk 0:01:45.7]} 23... Bxf3 {[%clk 0:02:01.3]} 24. gxf3 {[%clk 0:01:44.8]}
24... Rd7 {[%clk 0:01:58.6]} 25. Ba2+ {[%clk 0:01:44.4]} 25... Kf8 {[%clk
0:01:57.2]} 26. Ree1 {[%clk 0:01:40.3]} 26... Rcd8 {[%clk 0:01:51.7]} 27. d5
{[%clk 0:01:38.1]} 27... Na4 {[%clk 0:01:52.4]} 28. Rd2 {[%clk 0:01:37.6]} 28...
b5 {[%clk 0:01:51]} 29. Re6 {[%clk 0:01:38]} 29... Nb6 {[%clk 0:01:51.4]} 30. d6
{[%clk 0:01:36.6]} 30... Nc4 {[%clk 0:01:51.2]} 31. Bxc4 {[%clk 0:01:36.8]}
31... bxc4 {[%clk 0:01:53.1]} 32. Ke2 {[%clk 0:01:35]} 32... Kf7 {[%clk
0:01:53]} 33. Re4 {[%clk 0:01:35.6]} 33... c3 {[%clk 0:01:40.5]} 34. bxc3 {[%clk
0:01:34.7]} 34... Rxd6 {[%clk 0:01:41.7]} 35. Red4 {[%clk 0:01:34.2]} 35... Re6+
{[%clk 0:01:40.8]} 36. Kd3 {[%clk 0:01:33.8]} 36... Rde8 {[%clk 0:01:39.2]} 37.
Re4 {[%clk 0:01:31.6]} 37... Rxe4 {[%clk 0:01:12.6]} 38. fxe4 {[%clk 0:01:30.7]}
38... Ke6 {[%clk 0:01:14.5]} 39. Rb2 {[%clk 0:01:28.9]} 39... Re7 {[%clk
0:01:14.1]} 40. Rb5 {[%clk 0:01:27.9]} 40... Rd7+ {[%clk 0:01:14.4]} 41. Ke3
{[%clk 0:01:25.3]} 41... Rc7 {[%clk 0:01:15.6]} 42. Kd4 {[%clk 0:01:24.6]} 42...
Rd7+ {[%clk 0:01:16.6]} 43. Rd5 {[%clk 0:01:25.7]} 43... Rf7 {[%clk 0:01:17.9]}
44. Ra5 {[%clk 0:01:24.5]} 44... Rd7+ {[%clk 0:01:17.8]} 45. Rd5 {[%clk
0:01:25.5]} 45... Rf7 {[%clk 0:01:18.9]} 46. Re5+ {[%clk 0:01:26.9]} 46... Kd6
{[%clk 0:01:20.2]} 47. Ra5 {[%clk 0:01:27.9]} 47... Rf2 {[%clk 0:01:19.8]} 48.
Ra6+ {[%clk 0:01:28.6]} 48... Kc7 {[%clk 0:01:20.9]} 49. Rxa7+ {[%clk
0:01:30.5]} 49... Kd6 {[%clk 0:01:21.1]} 50. Rxh7 {[%clk 0:01:32.4]} 50... Ra2
{[%clk 0:01:21.3]} 51. Rg7 {[%clk 0:01:32.2]} 51... Rxh2 {[%clk 0:01:21.3]} 52.
Rxg6+ {[%clk 0:01:33]} 52... Ke7 {[%clk 0:01:23.2]} 53. a4 {[%clk 0:01:34]}
53... Ra2 {[%clk 0:01:23.2]} 54. Ra6 {[%clk 0:01:33.5]} 54... Kd7 {[%clk
0:01:25.1]} 55. c4 {[%clk 0:01:33.5]} 1-0

[Event "*** Titled Tuesday 3|2 Blitz (Late)"]
[Site "Chess.com"]
[Date "2017.01.03"]
[Round "4"]
[White "Kawhi_Leonard2"]
[Black "Divertissement"]
[Result "0-1"]
[WhiteElo "2209"]
[BlackElo "2438"]
[TimeControl "180+2"]
[EndTime "17:45:05 PST"]
[Termination "Divertissement won by resignation"]

1. e4 {[%clk 0:03:02]} 1... c6 {[%clk 0:02:58.4]} 2. d4 {[%clk 0:03:02.2]} 2...
d5 {[%clk 0:03:00]} 3. Nd2 {[%clk 0:03:03.7]} 3... dxe4 {[%clk 0:03:01.1]} 4.
Nxe4 {[%clk 0:03:05.6]} 4... Bf5 {[%clk 0:03:01.2]} 5. Ng3 {[%clk 0:03:06.8]}
5... Bg6 {[%clk 0:03:02.3]} 6. h4 {[%clk 0:03:08.4]} 6... h6 {[%clk 0:03:03.5]}
7. Nf3 {[%clk 0:03:09.8]} 7... Nd7 {[%clk 0:03:04.2]} 8. h5 {[%clk 0:03:11.2]}
8... Bh7 {[%clk 0:03:05.7]} 9. Bd3 {[%clk 0:03:12.9]} 9... Bxd3 {[%clk
0:03:06.7]} 10. Qxd3 {[%clk 0:03:14.8]} 10... e6 {[%clk 0:03:08.3]} 11. Bd2
{[%clk 0:03:14.9]} 11... Ngf6 {[%clk 0:03:09.4]} 12. O-O-O {[%clk 0:03:15]}
12... Be7 {[%clk 0:03:10]} 13. Kb1 {[%clk 0:03:16]} 13... O-O {[%clk 0:03:07.5]}
14. Ne4 {[%clk 0:03:17]} 14... Nxe4 {[%clk 0:03:08.7]} 15. Qxe4 {[%clk
0:03:18.2]} 15... Nf6 {[%clk 0:03:10]} 16. Qe2 {[%clk 0:03:18.4]} 16... Qd5
{[%clk 0:03:11.6]} 17. Be3 {[%clk 0:03:19]} 17... Ng4 {[%clk 0:03:10.1]} 18. Rh3
{[%clk 0:02:56.6]} 18... Nxe3 {[%clk 0:03:05.1]} 19. Qxe3 {[%clk 0:02:52.9]}
19... c5 {[%clk 0:03:00.9]} 20. Rhh1 {[%clk 0:02:45.2]} 20... Rfd8 {[%clk
0:02:57.8]} 21. Qe2 {[%clk 0:02:42.4]} 21... Bf6 {[%clk 0:02:45]} 22. dxc5
{[%clk 0:02:39.4]} 22... Qxc5 {[%clk 0:02:45.7]} 23. g4 {[%clk 0:02:30.5]} 23...
Qb4 {[%clk 0:02:41.1]} 24. Ne5 {[%clk 0:02:24.5]} 24... Qf4 {[%clk 0:02:19.1]}
25. Nd3 {[%clk 0:02:08.4]} 25... Qc4 {[%clk 0:02:00.9]} 26. f4 {[%clk
0:01:54.4]} 26... Rd5 {[%clk 0:02:00.4]} 27. Rhg1 {[%clk 0:01:54.3]} 27... Rb5
{[%clk 0:01:56.8]} 28. Qe3 {[%clk 0:01:13.4]} 28... Rd8 {[%clk 0:01:22.7]} 29.
g5 {[%clk 0:01:04.1]} 29... hxg5 {[%clk 0:01:09.1]} 30. fxg5 {[%clk 0:01:04.2]}
30... Bd4 {[%clk 0:00:39.6]} 31. Qe4 {[%clk 0:00:59.3]} 31... Qc3 {[%clk
0:00:31.7]} 32. Kc1 {[%clk 0:00:40.7]} 32... Rxb2 {[%clk 0:00:28.3]} 33. Nxb2
{[%clk 0:00:40.9]} 33... Qxb2+ {[%clk 0:00:29.7]} 34. Kd2 {[%clk 0:00:41.8]}
34... Bxg1+ {[%clk 0:00:26.3]} 0-1